[Event "2nd Namma Bengaluru Open-A 2025"]
[Site "Bengaluru"]
[Date "2025.04.16"]
[Round "8.9"]
[White "Wagh Suyog"]
[Black "Anuj Shrivatri"]
[Result "0-1"]
[Annotator "RC"]
[ECO "E29"]
[WhiteElo "2289"]
[BlackElo "2400"]
[PlyCount "166"]
[EventDate "2025.04.10"]
[EventType "swiss"]
[EventCountry "IND"]
[SourceTitle "playchess.com"]
[Source "ChessBase"]
[SourceQuality "1"]
[TimeControl "5400+30"]

1. d4 {[%emt 0:00:09]} Nf6 {[%emt 0:00:34]} 2. c4 {[%emt 0:00:01]} e6 {[%emt 0:00:08]} 3. Nc3 {[%emt 0:00:03]} Bb4 {[%emt 0:00:06]} 4. a3 {[%emt 0:00:04]} Bxc3+ {[%emt 0:00:04]} 5. bxc3 {[%emt 0:00:03]} c5 {[%emt 0:00:06]} 6. e3 {[%emt 0:00:08]} b6 {[%emt 0:11:39]} 7. Bd3 {[%emt 0:00:37]} Bb7 {[%emt 0:00:04]} 8. f3 {[%emt 0:00:09]} Nc6 {[%emt 0:00:15]} 9. Ne2 {[%emt 0:01:07]} O-O {[%emt 0:14:51]} 10. O-O {[%emt 0:06:05]} Ba6 {[%emt 0:01:01]} 11. e4 {[%emt 0:00:52]} Ne8 {[%emt 0:00:04]} 12. f4 {[%emt 0:02:26]} f5 {[%emt 0:00:32]} 13. exf5 {[%emt 0:00:12]} exf5 {[%emt 0:00:03]} 14. dxc5 {[%emt 0:00:09]} bxc5 {[%emt 0:00:05]} 15. Be3 {[%emt 0:00:05]} d6 {[%emt 0:00:03]} 16. Re1 {[%emt 0:05:03]} g6 {[%emt 0:08:39]} 17. Bf2 {[%emt 0:02:17]} Qd7 {[%emt 0:11:54]} 18. Qa4 {[%emt 0:00:58]} Ne5 {[%emt 0:08:54]} 19. Qxd7 {[%emt 0:25:11]} Nxd7 {[%emt 0:00:59]} 20. a4 {[%emt 0:00:04]} Rb8 {[%emt 0:18:43]} 21. a5 {[%emt 0:00:36]} Nef6 {[%emt 0:00:23]} 22. Ng3 {[%emt 0:04:51]} Rfe8 {[%emt 0:00:30]} 23. Red1 {[%emt 0:06:14]} Rb2 {[%emt 0:00:21]} 24. h3 {[%emt 0:00:30]} Kf7 {[%emt 0:02:50]} 25. Rac1 {[%emt 0:06:48]} Re6 {[%emt 0:01:58]} 26. Nf1 {[%emt 0:01:23]} Nh5 {[%emt 0:00:32]} 27. g3 {[%emt 0:00:31]} Ndf6 {[%emt 0:04:59]} 28. Rb1 {[%emt 0:01:48]} Rxb1 {[%emt 0:00:05]} 29. Rxb1 {[%emt 0:00:06]} Re8 {[%emt 0:00:04]} 30. Nd2 Nd7 {[%emt 0:00:41]} 31. Bc2 {[%emt 0:07:07]} Rb8 {[%emt 0:02:00]} 32. Rxb8 {[%emt 0:16:28]} Nxb8 {[%emt 0:00:15]} 33. Ba4 {[%emt 0:00:04]} Bb7 {[%emt 0:00:26]} 34. Kf1 {[%emt 0:01:09]} Nf6 {[%emt 0:00:16]} 35. Be1 {[%emt 0:06:00]} a6 {[%emt 0:00:43]} 36. Bc2 {[%emt 0:01:03]} Nc6 {[%emt 0:00:50]} 37. Nb3 {[%emt 0:00:14]} Nd8 {[%emt 0:00:03]} 38. Ke2 {[%emt 0:04:44]} Bg2 {[%emt 0:00:12]} 39. h4 {[%emt 0:00:24]} h5 {[%emt 0:01:02]} 40. Kd2 {[%emt 0:00:19]} Nb7 {[%emt 0:00:26]} 41. Bd3 {[%emt 0:00:18]} Bc6 {[%emt 0:00:14]} 42. Kc1 {[%emt 0:00:45]} Be4 {[%emt 0:03:28]} 43. Be2 {[%emt 0:01:20]} Ng8 {[%emt 0:00:18]} 44. Kb2 {[%emt 0:00:11]} Ne7 {[%emt 0:00:05]} 45. Bf2 {[%emt 0:00:37]} Nc6 {[%emt 0:00:06]} 46. Be3 {[%emt 0:00:06]} Ncxa5 {[%emt 0:00:10]} 47. Nxa5 {[%emt 0:00:05]} Nxa5 {[%emt 0:00:04]} 48. Ka3 {[%emt 0:00:04]} Ke7 {[%emt 0:00:15]} 49. Ka4 {[%emt 0:00:17]} Nb7 {[%emt 0:00:04]} 50. Bf2 {[%emt 0:00:17]} Bc6+ {[%emt 0:00:06]} 51. Ka3 {[%emt 0:00:03]} Kd7 {[%emt 0:00:02]} 52. Be3 {[%emt 0:00:40]} Kc7 {[%emt 0:00:15]} 53. Bf2 {[%emt 0:02:47]} Na5 {[%emt 0:00:05]} 54. Be3 {[%emt 0:00:28]} Bd7 {[%emt 0:00:04]} 55. Bg1 {[%emt 0:00:06]} Be6 {[%emt 0:00:17]} 56. Ka4 {[%emt 0:01:25]} Kb6 {[%emt 0:00:05]} 57. Bf2 {[%emt 0:00:11]} Bxc4 {[%emt 0:00:18]} 58. Bf3 {[%emt 0:00:04]} Bb5+ {[%emt 0:00:08]} 59. Ka3 {[%emt 0:00:05]} Nc4+ {[%emt 0:00:09]} 60. Ka2 {[%emt 0:00:03]} Nd2 {[%emt 0:00:10]} 61. Bd1 {[%emt 0:00:07]} Ne4 {[%emt 0:01:12]} 62. Be1 {[%emt 0:00:12]} d5 {[%emt 0:01:47]} 63. Kb2 {[%emt 0:00:13]} Kc6 {[%emt 0:01:48]} 64. Bb3 {[%emt 0:00:09]} Kd6 {[%emt 0:01:45]} 65. Bc2 {[%emt 0:00:23]} Kc6 {[%emt 0:04:30]} 66. Bb3 {[%emt 0:02:27]} Nd6 {[%emt 0:00:05]} 67. Bf2 {[%emt 0:00:11]} Nc4+ {[%emt 0:00:27]} 68. Kc1 {[%emt 0:02:39]} a5 69. Bc2 {[%emt 0:00:30]} a4 70. g4 {[%emt 0:00:30]} a3 71. Kb1 {[%emt 0:00:30]} hxg4 72. h5 {[%emt 0:00:30]} gxh5 73. Bxf5 {[%emt 0:00:30]} Nd2+ 74. Ka2 {[%emt 0:00:30]} Ne4 75. Be1 {[%emt 0:00:30]} g3 76. Bxe4 {[%emt 0:00:30]} dxe4 77. Bxg3 {[%emt 0:00:30]} e3 78. Kxa3 {[%emt 0:00:30]} Bd3 79. Kb2 {[%emt 0:00:30]} Kd5 80. Kc1 {[%emt 0:00:30]} c4 81. Bh4 {[%emt 0:00:30]} Ke4 82. Bg5 {[%emt 0:00:30]} Kf3 83. f5 {[%emt 0:00:30]} Bxf5 0-1

[Event "2nd Namma Bengaluru Open-A 2025"]
[Site "Bengaluru"]
[Date "2025.04.16"]
[Round "8.10"]
[White "Nitish Belurkar"]
[Black "Rajesh, V A V"]
[Result "1/2-1/2"]
[Annotator "RC"]
[ECO "B10"]
[WhiteElo "2441"]
[BlackElo "2331"]
[PlyCount "90"]
[EventDate "2025.04.10"]
[EventType "swiss"]
[EventCountry "IND"]
[SourceTitle "playchess.com"]
[Source "ChessBase"]
[SourceQuality "1"]
[TimeControl "5400+30"]

1. e4 {[%emt 0:00:04]} c6 {[%emt 0:00:23]} 2. d3 {[%emt 0:01:09]} d5 {[%emt 0:00:35]} 3. Nd2 {[%emt 0:00:05]} e5 {[%emt 0:01:35]} 4. Ngf3 {[%emt 0:00:05]} Bd6 {[%emt 0:00:31]} 5. g3 {[%emt 0:01:59]} Nf6 {[%emt 0:07:20]} 6. Bg2 {[%emt 0:00:35]} O-O {[%emt 0:00:07]} 7. O-O {[%emt 0:00:03]} Re8 {[%emt 0:00:27]} 8. b3 {[%emt 0:00:15]} a5 {[%emt 0:05:00]} 9. a3 {[%emt 0:00:49]} Nbd7 {[%emt 0:03:35]} 10. Bb2 {[%emt 0:00:51]} Nf8 {[%emt 0:01:18]} 11. Re1 {[%emt 0:04:12]} Ng6 {[%emt 0:00:16]} 12. d4 {[%emt 0:22:09]} dxe4 {[%emt 0:07:11]} 13. dxe5 {[%emt 0:00:56]} Nxe5 {[%emt 0:04:11]} 14. Nxe4 {[%emt 0:00:49]} Nxf3+ {[%emt 0:00:23]} 15. Bxf3 {[%emt 0:05:48]} Nxe4 {[%emt 0:00:25]} 16. Bxe4 {[%emt 0:14:08]} Bf8 {[%emt 0:04:56]} 17. Qf3 {[%emt 0:03:06]} Be6 {[%emt 0:02:56]} 18. Rad1 {[%emt 0:00:08]} Qg5 {[%emt 0:01:34]} 19. h4 {[%emt 0:16:19]} Qg4 {[%emt 0:14:05]} 20. Qc3 {[%emt 0:00:31]} Qh5 {[%emt 0:10:40]} 21. Rd3 {[%emt 0:06:00]} Qc5 {[%emt 0:08:01]} 22. Qd2 {[%emt 0:01:20]} Bg4 {[%emt 0:07:35]} 23. Rde3 {[%emt 0:08:13]} Rad8 {[%emt 0:02:35]} 24. Bd3 {[%emt 0:00:26]} Rxe3 {[%emt 0:02:58]} 25. Rxe3 {[%emt 0:00:05]} Bf5 {[%emt 0:07:53]} 26. Re5 {[%emt 0:06:57]} Rd5 {[%emt 0:00:08]} 27. Rxf5 {[%emt 0:00:48]} Rxf5 {[%emt 0:00:05]} 28. Bxf5 {[%emt 0:00:40]} Qxf5 {[%emt 0:00:05]} 29. a4 {[%emt 0:00:09]} h6 {[%emt 0:05:24]} 30. Bd4 {[%emt 0:00:10]} Bb4 {[%emt 0:00:55]} 31. Qe2 {[%emt 0:01:28]} Qd5 {[%emt 0:01:37]} 32. Qg4 {[%emt 0:00:18]} Bf8 {[%emt 0:00:21]} 33. Be3 {[%emt 0:00:11]} f5 {[%emt 0:00:42]} 34. Qg6 {[%emt 0:04:28]} Qd1+ {[%emt 0:00:16]} 35. Kh2 {[%emt 0:00:19]} Qxc2 {[%emt 0:00:33]} 36. Qe6+ {[%emt 0:00:25]} Kh7 {[%emt 0:00:12]} 37. h5 {[%emt 0:00:17]} Bc5 {[%emt 0:00:41]} 38. Qg6+ {[%emt 0:00:15]} Kg8 {[%emt 0:00:39]} 39. Qe8+ {[%emt 0:00:07]} Kh7 {[%emt 0:00:05]} 40. Qg6+ {[%emt 0:00:04]} Kg8 {[%emt 0:00:16]} 41. Qe6+ {[%emt 0:01:00]} Kh7 {[%emt 0:00:21]} 42. g4 {[%emt 0:00:26]} Bxe3 {[%emt 0:00:22]} 43. Qg6+ {[%emt 0:00:04]} Kh8 {[%emt 0:00:16]} 44. Qe8+ {[%emt 0:00:03]} Kh7 {[%emt 0:00:05]} 45. Qg6+ {[%emt 0:00:02]} Kh8 {[%emt 0:00:04]} 1/2-1/2

[Event "2nd Namma Bengaluru Open-A 2025"]
[Site "Bengaluru"]
[Date "2025.04.16"]
[Round "8.11"]
[White "Grigoryan, Karen H."]
[Black "Arnav Maheshwari"]
[Result "1-0"]
[Annotator "TA"]
[ECO "B92"]
[WhiteElo "2556"]
[BlackElo "2305"]
[PlyCount "149"]
[EventDate "2025.04.10"]
[EventType "swiss"]
[EventCountry "IND"]
[SourceTitle "playchess.com"]
[Source "ChessBase"]
[SourceQuality "1"]
[TimeControl "5400+30"]

{[%evp 15,149,-2,-1,-16,32,33,43,18,21,15,57,56,65,65,74,82,108,102,110,102,120,111,114,129,169,174,211,166,264,214,179,130,273,274,275,262,262,264,258,257,284,261,231,191,178,167,212,216,213,218,247,239,253,209,206,175,158,164,185,181,178,160,260,247,264,269,293,159,142,142,141,21,166,164,181,174,185,161,182,167,233,194,795,761,1616,1436,4012,4311,3269,3270,2771,12,12,12,46,56,2240,2290,2240,2240,2240,1981,29965,29970,29969,29970,29969,29969,29968,29969,29969,29970,29971,29972,29971,29972,29972,29973,29978,29980,29981,29983,29984,29983,29983,29984,29984,29985,29987,29988,29993,29988,29988,29989,29990,4810]} 1. e4 {[%emt 0:00:04]} c5 {[%emt 0:00:25]} 2. Nf3 {[%emt 0:00:06]} d6 {[%emt 0:00:09]} 3. d4 {[%emt 0:00:39]} cxd4 {[%emt 0:00:08]} 4. Nxd4 {[%emt 0:00:07]} Nf6 {[%emt 0:00:07]} 5. Nc3 {[%emt 0:00:05]} a6 {[%emt 0:00:08]} 6. Be2 {[%emt 0:00:06]} e5 {[%emt 0:00:10]} 7. Nf3 {[%emt 0:00:39]} Be7 {[%emt 0:00:17]} 8. Bg5 {[%emt 0:00:19]} Nbd7 {[%emt 0:03:12]} 9. a4 {[%emt 0:00:19] B92: Sicilian Najdorf: 6 Be2.} Nc5 {[%emt 0:08:30]} (9... Qb6 $11 {should be considered.}) 10. Bxf6 $14 {[%emt 0:01:04]} Bxf6 {[%emt 0:00:09]} 11. Nd2 $146 {[%emt 0:01:18] White is slightly better.} (11. Bc4 O-O 12. O-O Be7 13. a5 Kh8 14. b4 Ne6 15. Nd5 f5 16. exf5 Rxf5 17. Nd2 {1-0 Bonte,A (2223)-Raut,C (2264) ROM-ch Predeal 2006 (9)}) 11... Be6 {[%emt 0:02:37]} 12. Nc4 {[%emt 0:04:09]} Bxc4 {[%emt 0:03:46]} 13. Bxc4 {[%emt 0:00:11]} O-O {[%emt 0:00:45] Black is weak on the light squares} 14. O-O {[%emt 0:02:42]} Bg5 {[%emt 0:02:01]} 15. a5 {[%emt 0:04:17]} Kh8 {[%emt 0:06:23]} 16. b4 {[%emt 0:01:36]} Ne6 {[%emt 0:03:45]} 17. Nd5 {[%emt 0:00:13][%csl Od5] Strong Square White (d5)} Rc8 {[%emt 0:06:20]} 18. Nb6 {[%emt 0:01:02][%cal Oc4e6] [#]} Rc7 {[%emt 0:00:38]} 19. g3 {[%emt 0:01:21] White is more active.} Re7 {[%emt 0:06:22]} 20. Ra3 {[%emt 0:01:19]} f5 {[%emt 0:02:06]} 21. exf5 {[%emt 0:03:02]} Rxf5 {[%emt 0:01:25]} (21... Nd4 22. Rd3 Nxf5) 22. Bd5 {[%emt 0:02:22]} Nd4 {[%emt 0:52:07]} 23. Rd3 {[%emt 0:00:58]} (23. Rc3 $18 Rc7 24. Rxc7 Qxc7 25. Be4) 23... Qf8 {[%emt 0:00:00]} (23... Rf8 $16 24. Bc4 Nf5) 24. Be4 $18 {[%emt 0:01:04]} Rff7 {[%emt 0:00:00]} 25. c3 {[%emt 0:00:52]} Nb5 {[%emt 0:00:00]} 26. Qg4 {[%emt 0:00:36]} Bh6 {[%emt 0:00:00]} 27. Bd5 {[%emt 0:01:24]} Rf5 {[%emt 0:00:00]} 28. Qe4 {[%emt 0:00:12]} g6 {[%emt 0:00:00]} 29. c4 {[%emt 0:06:07]} Nd4 {[%emt 0:00:00]} 30. Bxb7 {[%emt 0:00:31][%cal Og1g2]} Bd2 {[%emt 0:00:00]} 31. Rxd4 {[%emt 0:04:49]} (31. Nc8 d5 32. Bxd5 (32. Qxd5 Ne2+ 33. Kg2 e4 $16) 32... Qxc8 33. Rxd4 (33. Rxd2 Nf3+ 34. Qxf3 Rxf3 $11) 33... Bxb4 $14) 31... exd4 {[%emt 0:00:00]} 32. Qxd4+ {[%emt 0:00:05]} Qg7 {[%emt 0:00:00]} 33. Qxd2 {[%emt 0:01:13]} Rxb7 {[%emt 0:00:00]} 34. Qxd6 {[%emt 0:00:08]} Qb2 {[%emt 0:00:00]} 35. Nd5 {[%emt 0:01:52]} Rbf7 {[%emt 0:00:00][%cal Rf5f2]} 36. Nf4 {[%emt 0:04:07]} (36. Qxa6 $2 Rxf2 37. Qa8+ Kg7 $19) 36... R5f6 {[%emt 0:00:00]} 37. Qc5 {[%emt 0:03:18]} Rf5 {[%emt 0:00:00]} 38. Nd5 {[%emt 0:01:05]} h5 {[%emt 0:00:00]} (38... Rf8 $16 {was worth a try.} 39. Qe3 Rf3) 39. Qe3 {[%emt 0:00:22]} Kh7 {[%emt 0:00:00] [#] Inhibits Qh6+.} 40. f4 $1 {[%emt 0:01:44]} Rf8 {[%emt 0:00:00]} 41. Qc3 {[%emt 0:06:04]} (41. Re1 $18) 41... Qxc3 $16 {[%emt 0:00:00]} 42. Nxc3 {[%emt 0:00:06][%mdl 4096] Endgame KRR-KRN} Rc8 {[%emt 0:10:00]} 43. Ne4 {[%emt 0:01:37]} (43. c5 $16) 43... Rxc4 {[%emt 0:00:00]} (43... Rb8 $1 $11) 44. Nd6 $1 $18 {[%emt 0:00:04][%csl LRc4,LRf5]} Rxb4 {[%emt 0:00:00]} 45. Nxf5 {[%emt 0:00:03]} gxf5 {[%emt 0:00:00] KR-KR. White is a pawn up.} 46. Re1 {[%emt 0:00:12]} h4 {[%emt 0:00:00]} 47. Kg2 {[%emt 0:00:21]} (47. gxh4 Rxf4 48. Re6 Rg4+ 49. Kh1 Rxh4 $16) 47... Rb2+ {[%emt 0:00:00]} (47... Ra4 $142) 48. Kh3 {[%emt 0:00:11]} Kg6 $2 {[%emt 0:00:00]} (48... hxg3 49. Re7+ (49. hxg3 Ra2 $16) (49. Kxg3 Kg6 $14) 49... Kg6) 49. Re6+ {[%emt 0:00:27]} (49. gxh4 Rb3+ 50. Kg2 Kh5 $11) 49... Kh5 {[%emt 0:00:00]} 50. Rxa6 {[%emt 0:01:50]} Ra2 {[%emt 0:01:07]} 51. Ra8 {[%emt 0:00:26]} ({Weaker is} 51. gxh4 Ra3+ 52. Kg2 Kxh4 $11) 51... hxg3 {[%emt 0:00:13]} 52. hxg3 {[%emt 0:00:04]} Ra1 {[%emt 0:01:16]} 53. a6 $2 {[%emt 0:00:07]} (53. Rg8 $18 Rxa5 54. Rg5+ Kh6 55. Kh4) 53... Rxa6 $1 $11 {[%emt 0:00:07]} 54. Rg8 {[%emt 0:01:06] Strongly threatening Rg5+.} Kh6 {[%emt 0:00:33]} 55. Rg5 {[%emt 0:00:05]} Ra5 {[%emt 0:00:06][%mdl 8192] White leaves nothing to chance now.} (55... Rf6 $14) 56. Kh4 $18 {[%emt 0:00:36]} Rb5 {[%emt 0:02:28][%cal Ba5b5,Bb5b1,Bb1h1][%mdl 32]} 57. g4 {[%emt 0:00:05]} Rb1 {[%emt 0:00:46]} 58. Rxf5 {[%emt 0:00:09]} Kg6 {[%emt 0:00:26] Wards off Rf6+} 59. Ra5 {[%emt 0:00:19] White mates.} Rh1+ {[%emt 0:00:03]} 60. Kg3 {[%emt 0:00:03]} Rg1+ {[%emt 0:00:03]} 61. Kf3 {[%emt 0:00:42]} Rf1+ {[%emt 0:00:07]} 62. Ke3 {[%emt 0:00:03]} Re1+ {[%emt 0:00:05]} 63. Kf2 {[%emt 0:00:04]} Rb1 {[%emt 0:00:04]} 64. Ra6+ {[%emt 0:00:03]} Kg7 {[%emt 0:00:04]} 65. Kg3 {[%emt 0:00:04]} Rh1 {[%emt 0:00:06]} 66. f5 {[%emt 0:00:04][%cal Bf4f5,Bf5f6,Bf6f7][%mdl 32]} Kf7 {[%emt 0:00:10]} 67. Kf4 {[%emt 0:00:04]} Rb1 {[%emt 0:00:17]} 68. Ra7+ {[%emt 0:00:04]} Kf8 {[%emt 0:00:07]} 69. Kg5 {[%emt 0:00:04]} Rb4 {[%emt 0:00:15]} 70. f6 {[%emt 0:00:09]} Rc4 {[%emt 0:00:29]} 71. Kf5 {[%emt 0:00:05]} Rb4 {[%emt 0:01:13]} 72. g5 {[%emt 0:00:05]} Rb8 {[%emt 0:00:19]} 73. Kg6 {[%emt 0:00:04]} Rd8 {[%emt 0:00:07]} 74. Rh7 {[%emt 0:00:06][%cal Rh7h8]} Kg8 {[%emt 0:00:05]} 75. f7+ {[%emt 0:00:04] Weighted Error Value: White=0.30/Black=0.64  Loses game:     	---       	Black=1      Mistake:       	White=3     	Black=7      Inaccurate:     	---       	Black=5      OK:         	White=18    	Black=10     Best:        	White=6     	Black=5      Strong:       	White=1     	---} 1-0

[Event "2nd Namma Bengaluru Open-A 2025"]
[Site "Bengaluru"]
[Date "2025.04.16"]
[Round "8.12"]
[White "Setumadhav Yellumahanthi"]
[Black "Goutham Krishna H"]
[Result "0-1"]
[Annotator "RC"]
[ECO "B12"]
[WhiteElo "2300"]
[BlackElo "2449"]
[PlyCount "62"]
[EventDate "2025.04.10"]
[EventType "swiss"]
[EventCountry "IND"]
[SourceTitle "playchess.com"]
[Source "ChessBase"]
[SourceQuality "1"]
[TimeControl "5400+30"]

1. e4 {[%emt 0:00:05]} c6 {[%emt 0:00:16]} 2. d4 {[%emt 0:00:12]} d5 {[%emt 0:00:07]} 3. e5 {[%emt 0:00:10]} Bf5 {[%emt 0:00:14]} 4. h4 {[%emt 0:00:14]} h5 {[%emt 0:00:33]} 5. Bd3 {[%emt 0:05:04]} Bxd3 {[%emt 0:00:21]} 6. Qxd3 {[%emt 0:00:06]} e6 {[%emt 0:00:10]} 7. Nf3 {[%emt 0:00:10]} Qa5+ {[%emt 0:00:09]} 8. Nbd2 {[%emt 0:00:06]} Nh6 {[%emt 0:00:12]} 9. O-O {[%emt 0:00:14]} Nf5 {[%emt 0:00:05]} 10. a4 {[%emt 0:01:00]} Qa6 {[%emt 0:00:52]} 11. c4 {[%emt 0:02:00]} Bb4 {[%emt 0:00:06]} 12. b3 {[%emt 0:00:27]} c5 {[%emt 0:00:09]} 13. Qb1 {[%emt 0:04:47]} Bxd2 {[%emt 0:17:41]} 14. Bxd2 {[%emt 0:03:51]} dxc4 {[%emt 0:23:28]} 15. d5 {[%emt 0:17:16]} cxb3 {[%emt 0:01:13]} 16. Qxb3 {[%emt 0:18:26]} O-O {[%emt 0:12:47]} 17. Ng5 {[%emt 0:07:40]} exd5 {[%emt 0:08:48]} 18. e6 {[%emt 0:02:00]} fxe6 {[%emt 0:01:57]} 19. Rfe1 {[%emt 0:00:36]} Nd7 {[%emt 0:19:12]} 20. Rxe6 {[%emt 0:18:44]} Qc4 {[%emt 0:00:39]} 21. Qxb7 {[%emt 0:00:49]} Rad8 {[%emt 0:01:24]} 22. Ba5 {[%emt 0:07:03]} Qd4 {[%emt 0:00:58]} 23. Ra2 {[%emt 0:09:07]} Nf6 {[%emt 0:08:16]} 24. Qb1 {[%emt 0:01:02]} Rde8 {[%emt 0:00:40]} 25. Rae2 {[%emt 0:01:16]} Qg4 {[%emt 0:00:47]} 26. Rxe8 {[%emt 0:00:31]} Nxe8 {[%emt 0:00:01]} 27. Qe1 {[%emt 0:00:26]} Nxh4 {[%emt 0:00:33]} 28. f4 {[%emt 0:00:33]} Qxf4 {[%emt 0:02:01]} 29. Bd2 {[%emt 0:01:05]} Qg4 {[%emt 0:00:29]} 30. Kh2 {[%emt 0:00:00]} Nd6 {[%emt 0:01:22]} 31. Qb1 {[%emt 0:00:25]} Ne4 {[%emt 0:00:00]} 0-1

[Event "2nd Namma Bengaluru Open-A 2025"]
[Site "Bengaluru"]
[Date "2025.04.16"]
[Round "8.13"]
[White "Gochelashvili, David"]
[Black "Sanikidze, Tornike"]
[Result "1/2-1/2"]
[Annotator "RC"]
[ECO "C54"]
[WhiteElo "2227"]
[BlackElo "2448"]
[PlyCount "62"]
[EventDate "2025.04.10"]
[EventType "swiss"]
[EventCountry "IND"]
[SourceTitle "playchess.com"]
[Source "ChessBase"]
[SourceQuality "1"]
[TimeControl "5400+30"]

1. e4 {[%emt 0:03:41]} e5 {[%emt 0:00:33]} 2. Nf3 {[%emt 0:00:08]} Nc6 {[%emt 1:30:57]} 3. Bc4 {[%emt 0:00:30]} Bc5 {[%emt 0:00:00]} 4. c3 {[%emt 0:00:14]} Nf6 {[%emt 0:00:00]} 5. d4 {[%emt 0:01:05]} exd4 {[%emt 0:00:00]} 6. cxd4 {[%emt 0:00:04]} Bb4+ {[%emt 0:00:00]} 7. Nbd2 {[%emt 0:00:09]} Nxe4 {[%emt 0:00:00]} 8. d5 {[%emt 0:00:16]} Ne7 {[%emt 0:00:00]} 9. O-O {[%emt 0:00:42]} Nxd2 {[%emt 0:00:00]} 10. Nxd2 {[%emt 0:01:28]} O-O {[%emt 0:00:00]} 11. a3 {[%emt 0:00:56]} Ba5 {[%emt 0:00:00]} 12. b4 {[%emt 0:03:01]} Bb6 {[%emt 0:00:00]} 13. d6 {[%emt 0:00:15]} cxd6 {[%emt 0:00:00]} 14. Ne4 {[%emt 0:00:06]} d5 {[%emt 0:00:00]} 15. Bxd5 {[%emt 0:00:06]} Nxd5 {[%emt 0:00:00]} 16. Qxd5 {[%emt 0:00:06]} d6 {[%emt 0:00:00]} 17. Bg5 {[%emt 0:02:38]} Qd7 {[%emt 0:00:00]} 18. Nxd6 {[%emt 0:02:27]} h6 {[%emt 0:00:00]} 19. Bh4 {[%emt 0:02:24]} Bc7 {[%emt 0:00:00]} 20. Nxc8 {[%emt 0:07:36]} Qxc8 {[%emt 0:00:00]} 21. Rac1 {[%emt 0:00:07]} Qb8 {[%emt 0:00:00]} 22. Bg3 {[%emt 0:37:10]} Bxg3 {[%emt 0:00:00]} 23. fxg3 {[%emt 0:00:05]} a6 {[%emt 0:00:00]} 24. g4 {[%emt 0:11:12]} Qa7+ {[%emt 0:00:00]} 25. Qc5 {[%emt 0:00:05]} Qxc5+ {[%emt 0:00:00]} 26. Rxc5 {[%emt 0:00:06]} Rac8 {[%emt 0:00:00]} 27. Rfc1 {[%emt 0:00:52]} Rxc5 {[%emt 0:00:00]} 28. Rxc5 {[%emt 0:00:05]} Rd8 {[%emt 0:00:00]} 29. Rc7 {[%emt 0:00:33]} Rd1+ {[%emt 0:00:00]} 30. Kf2 {[%emt 0:00:04]} Ra1 {[%emt 0:00:00]} 31. Rxb7 {[%emt 0:00:11]} Rxa3 {[%emt 0:00:00]} 1/2-1/2

[Event "2nd Namma Bengaluru Open-A 2025"]
[Site "Bengaluru"]
[Date "2025.04.16"]
[Round "8.14"]
[White "Mehar, Chinna Reddy C.H."]
[Black "Sri Sai Baswanth P"]
[Result "1-0"]
[Annotator "RC"]
[ECO "B45"]
[WhiteElo "2418"]
[BlackElo "2213"]
[PlyCount "53"]
[EventDate "2025.04.10"]
[EventType "swiss"]
[EventCountry "IND"]
[SourceTitle "playchess.com"]
[Source "ChessBase"]
[SourceQuality "1"]
[TimeControl "5400+30"]

1. e4 {[%emt 0:01:15]} c5 {[%emt 0:00:36]} 2. Nf3 {[%emt 0:00:10]} e6 {[%emt 0:00:17]} 3. d4 {[%emt 0:00:36]} cxd4 {[%emt 0:00:07]} 4. Nxd4 {[%emt 0:00:05]} Nf6 {[%emt 0:00:09]} 5. Nc3 {[%emt 0:00:23]} Nc6 {[%emt 0:00:12]} 6. Nxc6 {[%emt 0:00:41]} bxc6 {[%emt 0:00:07]} 7. e5 {[%emt 0:00:04]} Nd5 {[%emt 0:00:05]} 8. Ne4 {[%emt 0:00:05]} Qc7 {[%emt 0:00:06]} 9. f4 {[%emt 0:00:22]} Qb6 {[%emt 0:00:03]} 10. a3 {[%emt 0:01:07]} Ne3 {[%emt 0:01:20]} 11. Qd3 {[%emt 0:00:16]} Nxf1 {[%emt 0:00:30]} 12. Rxf1 {[%emt 0:00:07]} Ba6 {[%emt 0:00:14]} 13. c4 {[%emt 0:00:07]} f5 {[%emt 0:00:32]} 14. exf6 {[%emt 0:00:29]} d5 {[%emt 0:00:39]} 15. f7+ {[%emt 0:00:27]} Kxf7 {[%emt 0:00:41]} 16. f5 {[%emt 0:00:16]} h6 {[%emt 0:01:24]} 17. Be3 {[%emt 0:02:23]} Qa5+ {[%emt 0:59:07]} 18. Bd2 {[%emt 0:02:43]} Qd8 {[%emt 0:04:24]} 19. fxe6+ {[%emt 0:11:57]} Kg8 {[%emt 0:00:48]} 20. Rf7 {[%emt 0:09:28]} dxe4 {[%emt 0:19:15]} 21. Qxe4 {[%emt 0:00:28]} Qd6 {[%emt 0:03:23]} 22. Bb4 {[%emt 0:14:29]} c5 {[%emt 0:03:33]} 23. Rd1 {[%emt 0:00:50]} Qb6 {[%emt 0:00:51]} 24. Rdd7 {[%emt 0:04:36]} Re8 {[%emt 0:00:45]} 25. Rxg7+ {[%emt 0:01:38]} Bxg7 {[%emt 0:01:07]} 26. Rxg7+ {[%emt 0:00:06]} Kxg7 {[%emt 0:00:35]} 27. Bc3+ {[%emt 0:00:11]} 1-0